bitfinex/quotes_ETHUSD_20250216
["timestamp","ask_amount","ask_price","bid_price","bid_amount"]
[1739672196999,1.11408,2692.8,2692.7,6.1e-07]
[1739672197655,1.15198637,2692.8,2692.7,6.1e-07]
[1739672197856,1.45965901,2692.8,2692.7,6.1e-07]
[1739672198056,2.57373901,2692.8,2692.7,6.1e-07]
[1739672198456,2.53583264,2692.8,2692.7,6.1e-07]
[1739672198905,2.22816,2692.8,2692.7,6.1e-07]
[1739672199695,2.26606637,2692.8,2692.7,6.1e-07]
[1739672199923,2.22816,2692.8,2692.7,6.1e-07]
[1739672202334,2.26606637,2692.8,2692.7,6.1e-07]
[1739672204548,2.26606637,2692.8,2692.7,0.09741605]
[1739672205424,3.87455201,2692.8,2692.7,0.09741605]
[1739672205797,3.83664564,2692.8,2692.7,0.09741605]
[1739672206092,9.11664564,2692.8,2692.7,0.09741605]
[1739672206325,9.11664564,2692.8,2692.7,6.1e-07]
[1739672209095,9.39362773,2692.8,2692.7,6.1e-07]
[1739672210146,7.78514209,2692.8,2692.7,6.1e-07]
[1739672210297,7.78514209,2692.8,2692.7,0.09753648]
[1739672210498,7.78514209,2692.8,2692.7,6.1e-07]
[1739672210695,7.78514209,2692.8,2692.7,0.09753648]
[1739672211431,7.78514209,2692.8,2692.7,0.84773648]
[1739672211932,5.55698209,2692.8,2692.7,0.84773648]
[1739672217828,0.27698209,2692.8,2692.7,0.84773648]
[1739672221234,0.26468048,2692.8,2692.7,0.84773648]
[1739672221429,0.26468048,2692.8,2692.7,1.30390313]
[1739672224452,0.26468048,2692.8,2692.7,5.01764313]
[1739672225349,0.26468048,2692.8,2692.7,5.21764313]
[1739672225553,0.26468048,2692.8,2692.7,5.35477052]
[1739672225788,0.26468048,2692.8,2692.7,5.31764313]
[1739672226254,0.26468048,2692.8,2692.7,6.05699447]
[1739672226624,0.00556978,2693.1,2692.8,0.8013]
[1739672226928,0.00556978,2693.1,2693.0,8.06334324]
[1739672227127,0.00556978,2693.1,2693.0,8.1602608]
[1739672231655,9.78e-06,2693.1,2693.0,11.1602608]
[1739672235239,0.00556916,2693.4,2693.3,0.3]
[1739672235435,9.16e-06,2693.4,2693.3,11.40003738]
[1739672235640,0.00294659,2693.6,2693.5,7.81394]
[1739672235641,5.75e-06,2693.6,2693.5,7.81394]
[1739672235948,5.75e-06,2693.6,2693.5,7.91023424]
[1739672236247,7.92e-06,2694.0,2693.9,4.81339]
[1739672236426,0.00556668,2694.6,2694.4,0.1]
[1739672236628,0.00556668,2694.6,2694.5,8.06127324]
[1739672236828,0.00556668,2694.6,2694.5,9.36349885]
[1739672237381,0.00556668,2694.6,2694.5,9.56349885]
[1739672243787,0.00556668,2694.6,2694.5,9.74678523]
[1739672244351,0.00556668,2694.6,2694.5,9.56349885]
[1739672257061,0.00556668,2694.6,2694.5,12.56349885]
[1739672257265,6.68e-06,2694.6,2694.5,12.56349885]
[1739672267709,6.68e-06,2694.6,2694.5,12.82849885]
[1739672271892,6.68e-06,2694.6,2694.5,12.56349885]
[1739672274481,6.68e-06,2694.6,2694.5,8.56219885]
[1739672277006,6.68e-06,2694.6,2694.5,9.32139885]
[1739672278180,6.68e-06,2694.6,2694.5,12.32139885]
[1739672280330,6.68e-06,2694.6,2694.5,17.69139885]
[1739672289355,0.00556606,2694.9,2694.8,0.3]
[1739672289511,0.00556606,2694.9,2694.8,8.71355745]
[1739672289712,0.00556606,2694.9,2694.8,8.76992827]
[1739672293348,0.00556606,2694.9,2694.8,9.52898984]
[1739672294120,0.00556606,2694.9,2694.8,8.74208984]
[1739672294475,0.80056606,2694.9,2694.8,8.11208984]
[1739672294669,0.80056606,2694.9,2694.8,7.35302827]
[1739672295638,0.00556606,2694.9,2694.8,7.35302827]
[1739672297065,1.48391,2695.6,2694.8,7.35302827]
[1739672297066,0.00556421,2695.8,2695.7,7.00961]
[1739672297356,0.78246235,2696.7,2696.3,3.70878]
[1739672297561,0.78246235,2696.7,2696.3,7.29456974]
[1739672297852,0.00556235,2696.7,2696.3,8.91034376]
[1739672298077,2.97e-06,2696.4,2696.3,13.96829068]
[1739672298285,0.00556235,2696.7,2696.6,7.75887]
[1739672298422,0.00556235,2696.7,2696.6,11.57758324]
[1739672298622,0.00556235,2696.7,2696.6,11.6701659]
[1739672298819,0.00556235,2696.7,2696.6,13.26377918]
[1739672303958,0.00556235,2696.7,2696.6,12.51327918]
[1739672305845,0.00556235,2696.7,2696.6,12.24327918]
[1739672306050,0.00556235,2696.7,2696.6,12.04327918]
[1739672306445,0.00556235,2696.7,2696.6,1.68619594]
[1739672306646,0.00556235,2696.7,2696.6,0.09258266]
[1739672306852,0.00556235,2696.7,2696.5,3.70849]
[1739672307054,0.00556235,2696.7,2696.6,0.08888227]
[1739672307256,0.00556235,2696.7,2696.6,3.63759551]
[1739672311961,2.31785235,2696.7,2696.6,0.08888227]
[1739672312476,1.48335,2696.6,2696.3,11.88027641]
[1739672312677,2.23595,2696.4,2696.3,8.33156317]
[1739672312980,0.7525,2696.4,2696.3,8.33156317]
[1739672313476,2.23595,2696.4,2696.3,8.33156317]
[1739672317984,4.09028,2696.4,2696.3,8.33156317]
[1739672319056,0.7525,2696.4,2696.3,8.33156317]
[1739672319486,4.09028,2696.4,2696.3,8.33156317]
[1739672320260,4.09028,2696.4,2696.3,8.33156317]
[1739672320688,4.09028,2696.4,2696.3,0.00556317]
[1739672322419,3.33778,2696.4,2696.3,0.00556317]
[1739672323893,3.33766,2696.5,2696.3,0.00556317]
[1739672324297,6.67543,2696.5,2696.4,0.08850373]
[1739672324995,3.33766,2696.5,2696.4,0.08850373]
[1739672326295,12.70766,2696.6,2696.4,0.08850373]
[1739672326475,3.61430781,2696.5,2696.4,0.08850373]
[1739672326882,0.27665781,2696.5,2696.4,0.08850373]
[1739672327193,0.27665781,2696.5,2696.4,4.16142174]
[1739672327995,0.00556235,2696.7,2696.6,4.48187]
[1739672328198,0.00556235,2696.7,2696.6,8.03058324]
[1739672328495,0.00556235,2696.7,2696.6,8.11930009]
[1739672329086,0.00556235,2696.7,2696.6,8.21930009]
[1739672329285,0.00556235,2696.7,2696.6,9.4685079]
[1739672329905,0.00556173,2697.0,2696.9,0.1]
[1739672330106,0.00556111,2697.3,2697.2,4.56824]
[1739672330401,0.00556111,2697.3,2697.2,14.70272601]
[1739672330619,0.00556111,2697.3,2697.2,14.75334304]
[1739672330768,0.00556111,2697.3,2697.2,16.64634534]
[1739672331906,0.00556111,2697.3,2697.2,24.96434534]
[1739672333211,0.00556111,2697.3,2697.2,21.4156321]
[1739672333368,0.00556111,2697.3,2697.2,24.96434534]
[1739672333986,0.00556111,2697.3,2697.2,21.4156321]
[1739672334307,0.00556111,2697.3,2697.2,22.14037403]
[1739672334473,0.00556111,2697.3,2697.2,25.68908727]
[1739672335026,0.00556111,2697.3,2697.2,22.14037403]
[1739672335185,0.00556111,2697.3,2697.2,25.68908727]
[1739672336015,0.00556111,2697.3,2697.2,22.14037403]
[1739672336327,0.00556111,2697.3,2697.2,25.68908727]
[1739672336612,0.00556111,2697.3,2697.2,22.14037403]
[1739672339118,0.00556111,2697.3,2697.2,22.04437403]
[1739672339314,0.00556111,2697.3,2697.2,22.24437403]
[1739672339619,0.00556111,2697.3,2697.2,22.34037403]
[1739672341224,0.00556111,2697.3,2697.2,28.81782095]
[1739672341395,1.6e-06,2697.6,2697.5,7.76383]
[1739672341716,1.6e-06,2697.6,2697.5,27.78167878]
[1739672350540,1.6e-06,2697.6,2697.5,27.22423186]
[1739672350877,1.6e-06,2697.6,2697.5,27.49223186]
[1739672351024,1.6e-06,2697.6,2697.5,27.39623186]
[1739672351717,1.6e-06,2697.6,2697.5,27.12823186]
[1739672352028,1.6e-06,2697.6,2697.5,26.36753186]
[1739672353156,1.6e-06,2697.6,2697.5,26.16753186]
[1739672353332,1.6e-06,2697.6,2697.5,26.36753186]
[1739672353654,1.6e-06,2697.6,2697.5,24.60967817]
[1739672354459,1.6e-06,2697.6,2697.5,10.33967817]
[1739672354775,0.7795016,2697.6,2697.5,0.08383493]
[1739672354918,0.7835016,2697.6,2697.5,0.08383493]
[1739672355123,0.7795016,2697.6,2697.3,3.70729]
[1739672355345,0.7795016,2697.6,2697.5,0.08367453]
[1739672355549,0.7795016,2697.6,2697.4,0.08371826]
[1739672355760,0.7795016,2697.6,2697.5,0.08366681]
[1739672356053,0.7835016,2697.6,2697.5,0.08366681]
[1739672356267,0.7835016,2697.6,2697.3,3.70729]
[1739672356460,0.7835016,2697.6,2697.5,0.08366681]
[1739672356659,3.33642,2697.5,2697.4,0.08371826]
[1739672356860,0.7795,2697.3,2697.2,0.00556132]
[1739672357366,0.7795,2697.3,2697.2,3.71310132]
[1739672358268,0.8061,2697.5,2697.3,3.70731]
[1739672358463,0.8061,2697.5,2697.2,7.26181456]
[1739672358868,0.8061,2697.5,2697.2,3.55427456]
[1739672360036,0.8061,2697.3,2697.2,0.00556132]
[1739672361469,4.14277,2697.3,2697.2,0.00556132]
[1739672362047,4.41987718,2697.3,2697.2,0.00556132]
[1739672362745,5.1959159,2697.3,2697.2,0.00556132]
[1739672363072,4.41987718,2697.3,2697.2,0.00556132]
[1739672367478,1.08320718,2697.3,2697.2,0.00556132]
[1739672368577,1.08720718,2697.3,2697.2,0.00556132]
[1739672368958,4.42387718,2697.3,2697.2,0.00556132]
[1739672369260,4.14677,2697.3,2697.2,0.00556132]
[1739672369443,4.14677,2697.3,2697.2,0.08442705]
[1739672369641,4.14677,2697.3,2697.2,0.00556132]
[1739672369866,4.14677,2697.3,2697.2,0.08442705]
[1739672370575,0.8061,2697.3,2697.2,0.08442705]
[1739672370773,0.8101,2697.3,2697.2,0.46364475]
[1739672371171,5.28,2697.5,2697.4,3.70727]
[1739672371379,1.6e-06,2697.6,2697.4,3.70727]
[1739672371639,1.6e-06,2697.6,2697.5,7.25584324]
[1739672372073,1.6e-06,2697.6,2697.5,7.3344249]
[1739672372277,1.6e-06,2697.6,2697.5,8.43858639]
[1739672372482,1.6e-06,2697.6,2697.5,9.22268639]
[1739672373371,1.6e-06,2697.6,2697.5,12.22268639]
[1739672373576,1.6e-06,2697.6,2697.5,12.42268639]
[1739672375594,1.6e-06,2697.6,2697.5,12.51868639]
[1739672375950,1.6e-06,2697.6,2697.5,13.06868639]
[1739672376156,1.6e-06,2697.6,2697.5,13.62613331]
[1739672378294,1.6e-06,2697.6,2697.5,18.99613331]
[1739672379893,1.6e-06,2697.6,2697.5,27.31413331]
[1739672389144,1.6e-06,2697.6,2697.5,26.37768639]
[1739672389290,1.6e-06,2697.6,2697.5,25.59358639]
[1739672389619,1.6e-06,2697.6,2697.5,25.32658639]
[1739672389816,1.6e-06,2697.6,2697.5,18.57787315]
[1739672390119,1.6e-06,2697.6,2697.5,15.6524249]
[1739672390493,1.6e-06,2697.6,2697.5,18.6524249]
[1739672391094,1.6e-06,2697.6,2697.5,19.4532249]
[1739672391919,1.6e-06,2697.6,2697.5,18.6524249]
[1739672398943,1.6e-06,2697.6,2697.5,10.3344249]
[1739672399154,1.6e-06,2697.6,2697.5,11.73858639]
[1739672400366,1.6e-06,2697.6,2697.5,8.03145639]
[1739672400567,1.6e-06,2697.6,2697.5,6.6272949]
[1739672401063,1.6e-06,2697.6,2697.5,10.3344249]
[1739672401482,1.6e-06,2697.6,2697.5,6.6272949]
[1739672403283,0.6953016,2697.8,2697.5,6.6272949]
[1739672404054,0.6953016,2697.8,2697.5,10.3344249]
[1739672404239,0.6953016,2697.8,2697.5,11.73858539]
[1739672404435,0.6953016,2697.8,2697.5,8.03145539]
[1739672405541,0.27755924,2697.7,2697.5,8.03145539]
[1739672405920,0.27755924,2697.7,2697.5,8.03701609]
[1739672406750,0.6953016,2697.8,2697.5,8.03701609]
[1739672407154,0.004,2697.6,2697.5,3.6328556]
[1739672407555,0.004,2697.6,2697.5,0.08414236]
[1739672407873,0.8084,2697.6,2697.5,0.08414236]
[1739672409468,1.08588446,2697.6,2697.5,0.08414236]
[1739672412759,1.08588446,2697.6,2697.5,4.01198984]
[1739672413063,0.28148446,2697.6,2697.5,7.71911984]
[1739672413623,0.28148446,2697.6,2697.5,4.01198984]
[1739672413849,0.28148446,2697.6,2697.5,3.6328556]
[1739672414120,1.08588446,2697.6,2697.5,0.08414236]
[1739672414339,0.8084,2697.6,2697.5,0.08414236]
[1739672417627,3.77399,2697.6,2697.5,0.08414236]
[1739672419341,4.0894733,2697.6,2697.5,0.08414236]
[1739672419547,4.75706426,2697.6,2697.5,0.08414236]
[1739672420566,4.05156693,2697.6,2697.5,0.08414236]
[1739672420989,4.0894733,2697.6,2697.5,0.08414236]
[1739672423284,4.0894733,2697.6,2697.5,0.0055607]
[1739672424292,12.3694733,2697.6,2697.5,0.0055607]
[1739672424477,12.33156693,2697.6,2697.5,0.0055607]
[1739672424997,13.86127362,2697.6,2697.5,0.0055607]
[1739672434211,13.58369669,2697.6,2697.5,0.0055607]
[1739672435212,13.8607869,2697.6,2697.5,0.0055607]
[1739672447326,4.05108021,2697.6,2697.5,0.0055607]
[1739672447526,3.24668021,2697.6,2697.5,0.0055607]
[1739672447713,0.28109021,2697.6,2697.5,0.1289398]
[1739672448511,0.28109021,2697.6,2697.5,0.9455398]
[1739672449393,2.50528021,2697.6,2697.5,0.1289398]
[1739672449692,6.32488021,2697.6,2697.5,0.1289398]
[1739672449927,7.22147624,2697.6,2697.5,0.1289398]
[1739672450129,7.22147624,2697.6,2697.5,0.0055607]
[1739672455637,12.50147624,2697.6,2697.5,0.0055607]
[1739672455813,12.46356987,2697.6,2697.5,0.0055607]
[1739672459735,13.01356987,2697.6,2697.5,0.0055607]
[1739672460436,13.01356987,2697.6,2697.5,7e-07]
[1739672462955,13.38486987,2697.6,2697.5,7e-07]
[1739672467472,15.60986987,2697.6,2697.5,7e-07]
[1739672478967,3.9213,2697.5,2697.2,2.02e-06]
[1739672479270,3.00264,2697.3,2697.2,2.02e-06]
[1739672479471,6.55264,2697.3,2697.2,2.02e-06]
[1739672480039,6.87163658,2697.3,2697.2,2.02e-06]
[1739672484854,7.0547466,2697.3,2697.2,2.02e-06]
[1739672485271,13.0753472,2697.3,2697.2,2.02e-06]
[1739672485459,13.89613049,2697.3,2697.2,2.02e-06]
[1739672488080,16.12113049,2697.3,2697.2,2.02e-06]
[1739672488270,14.26743049,2697.3,2697.2,2.02e-06]
[1739672490647,13.38193049,2697.3,2697.2,2.02e-06]
[1739672492082,10.96864023,2697.3,2697.2,2.02e-06]
[1739672493958,10.96864023,2697.3,2697.2,0.76820202]
[1739672493959,5.56109021,2697.3,2697.2,0.76820202]
[1739672494383,5.56109021,2697.3,2697.2,0.89231375]
[1739672494691,3.28109021,2697.3,2697.2,0.89231375]
[1739672495053,0.28109021,2697.3,2697.2,0.89231375]
[1739672495485,0.28109021,2697.3,2697.2,2.86980603]
[1739672497292,0.28109021,2697.3,2697.2,6.57734603]
[1739672498691,0.27709021,2697.3,2697.2,6.57734603]
[1739672498858,0.28109021,2697.3,2697.2,6.57734603]
[1739672499054,0.004,2697.5,2697.3,0.7682]
[1739672499296,0.004,2697.5,2697.4,3.26621921]
[1739672499783,0.004,2697.5,2697.4,1.54961839]
[1739672507999,1.85756,2697.5,2697.4,1.54961839]
[1739672508200,1.85756,2697.5,2697.4,0.89188379]
[1739672508508,0.004,2697.5,2697.4,0.89188379]
[1739672508712,1.85756,2697.5,2697.4,0.89188379]
[1739672510317,2.13431011,2697.5,2697.4,0.89188379]
[1739672512309,0.28075011,2697.5,2697.4,0.89188379]
[1739672513337,0.28075011,2697.5,2697.4,1.70555581]
[1739672513562,0.004,2697.5,2697.4,1.70555581]
[1739672519260,0.2810836,2697.5,2697.4,1.70555581]
[1739672519741,0.2810836,2697.5,2697.4,3.42063828]
[1739672519936,0.2810836,2697.5,2697.4,2.60696626]
[1739672520716,0.004,2697.5,2697.4,2.60696626]
[1739672522746,0.004,2697.5,2697.4,0.89188379]
[1739672523347,0.28157042,2697.5,2697.4,0.89188379]
[1739672525843,0.28157042,2697.5,2697.4,0.12368379]
[1739672525844,2.13513042,2697.5,2697.4,0.12368379]
[1739672526140,0.28157042,2697.5,2697.2,2.02e-06]
[1739672526345,0.004,2697.3,2697.2,2.02e-06]
[1739672527422,0.004,2697.3,2697.2,1.71508449]
[1739672527615,0.28157042,2697.3,2697.2,1.71508449]
[1739672530447,0.28157042,2697.3,2697.2,2.02e-06]
[1739672531818,1.76453042,2697.3,2697.2,2.02e-06]
[1739672532015,2.08927446,2697.3,2697.2,2.02e-06]
[1739672533949,2.12718083,2697.3,2697.2,2.02e-06]
[1739672534256,2.08927446,2697.3,2697.2,2.02e-06]
[1739672534450,2.08927446,2697.3,2697.2,0.11059684]
[1739672534621,2.08927446,2697.3,2697.2,2.02e-06]
[1739672535247,0.28157042,2697.3,2697.2,0.89629684]
[1739672535453,1.76453042,2697.3,2697.2,0.78570202]
[1739672535655,1.76453042,2697.3,2697.2,0.11059684]
[1739672535825,0.28157042,2697.3,2697.2,0.11059684]
[1739672537533,0.28157042,2697.3,2697.2,2.63517931]
[1739672537724,0.28157042,2697.3,2697.2,6.60994494]
[1739672539342,0.27757042,2697.3,2697.2,6.60994494]
[1739672539892,0.27757042,2697.3,2697.2,8.43185391]
[1739672540971,0.00556049,2697.6,2697.5,3.70713]
[1739672541161,0.00556049,2697.6,2697.5,8.05362144]
[1739672541363,0.00556049,2697.6,2697.5,9.34002529]
[1739672550587,0.00556049,2697.6,2697.5,12.34002529]
[1739672559692,0.00556049,2697.6,2697.5,18.26002529]
[1739672561593,0.00556049,2697.6,2697.5,18.15097515]
[1739672570508,0.00556049,2697.6,2697.5,18.15097515]
[1739672573009,0.00556049,2697.6,2697.5,15.8870045]
[1739672574385,0.00556049,2697.6,2697.5,17.60097515]
[1739672575823,0.00556049,2697.6,2697.5,15.8870045]
[1739672575989,0.00556049,2697.6,2697.5,17.60097515]
[1739672577726,0.00556049,2697.6,2697.5,12.0775045]
[1739672579416,0.00556049,2697.6,2697.5,13.79147515]
[1739672580315,0.00556049,2697.6,2697.5,12.0775045]
[1739672580528,0.00556049,2697.6,2697.5,13.79147515]
[1739672580832,0.00556049,2697.6,2697.5,14.61627515]
[1739672581292,0.00556049,2697.6,2697.5,17.61627515]
[1739672581487,0.00556049,2697.6,2697.5,18.72372207]
[1739672585211,0.00556049,2697.6,2697.5,18.16627515]
[1739672585532,0.00556049,2697.6,2697.5,17.61627515]
[1739672585838,0.00556049,2697.6,2697.5,15.9023045]
[1739672586697,0.00556049,2697.6,2697.5,17.61627515]
[1739672587341,0.00556049,2697.6,2697.5,18.17372207]
[1739672590910,0.00556049,2697.6,2697.5,16.45975142]
[1739672591109,0.00556049,2697.6,2697.5,18.17372207]
[1739672595047,0.00556049,2697.6,2697.5,16.45975142]
[1739672595350,0.00556049,2697.6,2697.5,18.17372207]
[1739672596327,0.00556049,2697.6,2697.5,15.63495142]
[1739672596546,0.00556049,2697.6,2697.5,15.0775045]
[1739672597418,0.00556049,2697.6,2697.5,16.79147515]
[1739672604325,0.00556049,2697.6,2697.5,17.55767515]
[1739672606469,0.00556049,2697.6,2697.5,18.66512207]
[1739672607064,4.9e-07,2697.6,2697.5,18.10767515]
[1739672607281,0.00555987,2697.9,2697.8,4.47292]
[1739672607451,0.00555987,2697.9,2697.8,7.36066955]
[1739672607767,0.00555987,2697.9,2697.8,7.46991355]
[1739672607950,0.00555987,2697.9,2697.8,7.43285729]
[1739672610172,0.00555987,2697.9,2697.8,8.15973238]
[1739672610668,0.00555987,2697.9,2697.8,16.52973238]
[1739672611766,0.00555987,2697.9,2697.8,15.50053238]
[1739672612269,0.80015987,2697.9,2697.8,15.50053238]
[1739672613270,0.80015987,2697.9,2697.8,11.62680974]
[1739672613478,0.80015987,2697.9,2697.8,10.89993465]
[1739672615454,0.00555987,2697.9,2697.8,10.89993465]
[1739672627898,0.00555987,2697.9,2697.8,5.52993465]
[1739672639998,0.00955987,2697.9,2697.8,5.52993465]
[1739672641716,0.00955987,2697.9,2697.8,1.82321465]
[1739672642296,0.00955987,2697.9,2697.8,5.52993465]
[1739672645990,0.00955987,2697.9,2697.8,6.69880705]
[1739672646194,0.00955987,2697.9,2697.8,7.521268]
[1739672646395,0.00955987,2697.9,2697.8,7.48420705]
[1739672646396,0.00555987,2697.9,2697.8,7.48420705]
[1739672646725,0.00955987,2697.9,2697.8,7.48420705]
[1739672653604,0.00555987,2697.9,2697.8,7.48420705]
[1739672654035,0.00955987,2697.9,2697.8,7.48420705]
[1739672654237,0.00555987,2697.9,2697.8,7.48420705]
[1739672655611,0.00555987,2697.9,2697.8,10.48420705]
[1739672660647,0.00555987,2697.9,2697.8,15.85420705]
[1739672666563,0.00555987,2697.9,2697.8,16.40420705]
[1739672670260,9.87e-06,2697.9,2697.8,16.96165393]
[1739672672431,9.87e-06,2697.9,2697.8,25.86165393]
[1739672675960,9.87e-06,2697.9,2697.8,27.57562458]
[1739672678834,9.87e-06,2697.9,2697.8,25.86165393]
[1739672681243,9.87e-06,2697.9,2697.8,27.57562458]
[1739672681656,9.87e-06,2697.9,2697.8,25.86165393]
[1739672685067,9.87e-06,2697.9,2697.8,27.57562458]
[1739672685276,9.87e-06,2697.9,2697.8,25.86165393]
[1739672687598,9.87e-06,2697.9,2697.8,27.57562458]
[1739672687798,9.87e-06,2697.9,2697.8,25.86165393]
[1739672687950,9.87e-06,2697.9,2697.8,27.57562458]
[1739672688158,9.87e-06,2697.9,2697.8,35.89162458]
[1739672688798,9.87e-06,2697.9,2697.8,34.17765393]
[1739672690280,9.87e-06,2697.9,2697.8,35.89162458]
[1739672690599,9.87e-06,2697.9,2697.8,34.17765393]
[1739672694453,9.87e-06,2697.9,2697.8,35.89162458]
[1739672694871,9.87e-06,2697.9,2697.8,34.17765393]
[1739672695870,9.87e-06,2697.9,2697.8,35.89162458]
[1739672696902,9.87e-06,2697.9,2697.8,34.17765393]
[1739672697105,9.87e-06,2697.9,2697.8,35.89162458]
[1739672699704,9.13e-06,2698.2,2698.1,11.4967513]
[1739672699872,9.13e-06,2698.2,2698.1,19.317261]
[1739672700069,9.13e-06,2698.2,2698.1,19.42567541]
[1739672702515,9.13e-06,2698.2,2698.1,27.74067541]
[1739672704897,9.13e-06,2698.2,2698.1,28.49059851]
[1739672709227,7.77e-06,2698.5,2698.4,3.70589]
[1739672709446,7.77e-06,2698.5,2698.4,11.81706938]
[1739672709582,7.77e-06,2698.5,2698.4,12.70297692]
[1739672712012,7.77e-06,2698.5,2698.4,11.88827692]
[1739672714016,7.77e-06,2698.5,2698.4,26.15827692]
[1739672714734,7.77e-06,2698.5,2698.4,26.7157238]
[1739672719864,0.78520777,2698.5,2698.4,26.1657238]
[1739672720139,0.78520777,2698.5,2698.4,10.89811527]
[1739672720508,0.78520777,2698.5,2698.4,12.61208592]
[1739672722040,0.78920777,2698.5,2698.4,10.89811527]
[1739672722401,0.78920777,2698.5,2698.4,1.82222527]
[1739672722602,0.78920777,2698.5,2698.4,0.10825462]
[1739672723918,0.78920777,2698.5,2698.2,1.71397065]
[1739672724107,0.78920777,2698.5,2698.3,0.09731022]
[1739672724309,0.78920777,2698.5,2698.2,1.71397065]
[1739672724642,0.78920777,2698.5,2698.3,0.09731022]
[1739672725010,0.78920777,2698.5,2698.2,1.71397065]
[1739672725202,0.78920777,2698.5,2698.4,0.09725694]
[1739672725407,0.78920777,2698.5,2698.3,0.09731022]
[1739672725638,0.78920777,2698.5,2698.4,0.09725694]
[1739672725942,0.78920777,2698.5,2698.2,1.71397065]
[1739672726119,0.78920777,2698.5,2698.3,0.09731022]
[1739672726308,0.78920777,2698.5,2698.2,1.71397065]
[1739672726509,0.78920777,2698.5,2698.3,0.09731022]
[1739672726711,0.78920777,2698.5,2698.2,1.71397065]
[1739672726910,0.78920777,2698.5,2698.3,0.09731022]
[1739672727110,0.78920777,2698.5,2698.2,1.71397065]
[1739672727313,0.78920777,2698.5,2698.3,0.09742179]
[1739672727512,0.78920777,2698.5,2698.2,1.71397065]
[1739672727833,0.78920777,2698.5,2698.3,0.09742179]
[1739672728146,0.78920777,2698.5,2698.2,1.71397065]
[1739672728345,0.78920777,2698.5,2698.3,0.09742179]
[1739672728517,0.78920777,2698.5,2698.2,1.71397065]
[1739672728718,0.78920777,2698.5,2698.3,0.09742179]
[1739672728942,0.78920777,2698.5,2698.2,1.71397065]
[1739672729147,0.78920777,2698.5,2698.3,0.09742179]
[1739672729350,0.78920777,2698.5,2698.2,1.71397065]
[1739672729663,0.78920777,2698.5,2698.3,0.09742179]
[1739672730034,0.78920777,2698.5,2698.2,1.71397065]
[1739672730355,0.78920777,2698.5,2698.3,0.09742179]
[1739672730554,0.78920777,2698.5,2698.2,1.71397065]
[1739672730753,0.78920777,2698.5,2698.3,0.09742179]
[1739672730956,0.78920777,2698.5,2698.2,1.71397065]
[1739672731157,0.78920777,2698.5,2698.3,0.09742179]
[1739672731371,0.78920777,2698.5,2698.2,1.71397065]
[1739672731576,0.78920777,2698.5,2698.3,0.09742179]
[1739672731765,0.78920777,2698.5,2698.2,1.71397065]
[1739672731966,0.78920777,2698.5,2698.3,0.09742179]
[1739672732169,0.78920777,2698.5,2698.2,1.71397065]
[1739672732373,0.78920777,2698.5,2698.3,0.09742179]
[1739672732580,0.78920777,2698.5,2698.2,1.71397065]
[1739672732736,0.78920777,2698.5,2698.3,0.09742179]
[1739672732936,0.78920777,2698.5,2698.2,1.71397065]
[1739672733135,0.78920777,2698.5,2698.3,0.09742179]
[1739672733377,0.78920777,2698.5,2698.2,1.71397065]
[1739672733579,0.78920777,2698.5,2698.3,0.09742179]
[1739672733747,0.78920777,2698.5,2698.2,1.71397065]
[1739672733953,0.78920777,2698.5,2698.3,0.09774822]
[1739672734258,0.78920777,2698.5,2698.2,1.71397065]
[1739672734459,0.78920777,2698.5,2698.4,0.09769494]
[1739672734646,0.78920777,2698.5,2698.3,0.09774822]
[1739672734849,0.78920777,2698.5,2698.4,0.09423135]
[1739672735172,0.78920777,2698.5,2698.2,1.71397065]
[1739672735373,0.78920777,2698.5,2698.3,0.09428463]
[1739672735578,0.78920777,2698.5,2698.2,1.71397065]
[1739672735877,0.78920777,2698.5,2698.3,0.09428463]
[1739672736234,0.78920777,2698.5,2698.2,1.71397065]
[1739672736438,0.78920777,2698.5,2698.4,0.09427217]
[1739672736652,0.78920777,2698.5,2698.3,0.09432545]
[1739672736872,0.78920777,2698.5,2698.4,0.09427217]
[1739672737257,0.78920777,2698.5,2698.2,1.71397065]
[1739672737459,0.78920777,2698.5,2698.4,0.09427217]
[1739672737658,0.78920777,2698.5,2698.3,0.09432545]
[1739672737859,0.78920777,2698.5,2698.4,0.09427217]
[1739672738160,0.78920777,2698.5,2698.2,5.42013065]
[1739672738358,0.78920777,2698.5,2698.3,0.09432545]
[1739672738590,0.78920777,2698.5,2698.2,5.42013065]
[1739672738768,0.78920777,2698.5,2698.3,0.09432545]
[1739672738964,0.78920777,2698.5,2698.2,5.42013065]
[1739672739185,0.78920777,2698.5,2698.3,0.09432545]
[1739672739382,0.78920777,2698.5,2698.2,5.42013065]
[1739672739699,0.78920777,2698.5,2698.3,0.09432545]
[1739672740074,0.78920777,2698.5,2698.2,5.42013065]
[1739672740260,0.78920777,2698.5,2698.4,0.09427217]
[1739672740461,0.78920777,2698.5,2698.3,0.09432545]
[1739672740661,0.78920777,2698.5,2698.4,0.09427217]
[1739672741062,0.78920777,2698.5,2698.2,5.42013065]
[1739672741283,0.78920777,2698.5,2698.4,0.09427217]
[1739672741590,1.05340355,2698.5,2698.4,0.09427217]
[1739672741898,0.7855,2698.4,2698.2,1.71397065]
[1739672744467,0.7855,2698.4,2698.3,0.09432545]
[1739672744729,0.7855,2698.4,2698.2,1.71397065]
[1739672744930,0.7855,2698.4,2698.3,0.09432545]
[1739672745231,0.7855,2698.3,2698.1,0.00555946]
[1739672745442,0.7895,2698.2,2698.1,0.00555946]
[1739672758658,2.30986637,2698.2,2698.1,0.00555946]
[1739672759766,2.30986637,2698.2,2698.1,0.10014662]
[1739672760965,0.7895,2698.2,2698.1,0.10014662]
[1739672767680,2.30986637,2698.2,2698.1,0.10014662]
[1739672767853,2.27196,2698.2,2698.1,0.10014662]
[1739672768580,2.30986637,2698.2,2698.1,0.10014662]
[1739672769340,2.27196,2698.2,2698.1,0.10014662]
[1739672771050,2.30986637,2698.2,2698.1,0.10014662]
[1739672771649,2.27196,2698.2,2698.1,0.10014662]
[1739672771862,0.7895,2698.2,2698.1,0.10014662]
[1739672773180,0.004,2698.2,2698.1,3.80645662]
[1739672774059,0.004,2698.3,2698.2,0.8258]
[1739672774259,0.004,2698.3,2698.2,6.28291926]
[1739672774460,0.004,2698.3,2698.2,6.34050829]
[1739672778585,0.004,2698.3,2698.2,0.09464764]
[1739672779389,0.8035,2698.3,2698.2,0.09464764]
[1739672781452,0.004,2698.3,2698.2,0.09464764]
[1739672783287,0.004,2698.3,2698.2,3.80081764]
[1739672783472,0.004,2698.3,2698.2,5.51478829]
[1739672783897,0.004,2698.3,2698.2,7.19015307]
[1739672784055,0.004,2698.3,2698.2,7.2272119]
[1739672784250,0.004,2698.3,2698.2,7.19015307]
[1739672787589,0.004,2698.3,2698.2,9.01014483]
[1739672792397,0.004,2698.3,2698.2,7.33478005]
[1739672792594,0.004,2698.3,2698.2,3.80081764]
[1739672795173,0.00630138,2698.5,2698.4,3.70589]
[1739672795377,0.01030138,2698.5,2698.4,3.7966842]
[1739672796197,0.01030138,2698.5,2698.4,0.0907942]
[1739672796389,0.01030138,2698.5,2698.2,3.70605]
[1739672796589,0.004,2698.3,2698.2,3.70605]
[1739672798167,0.004,2698.3,2698.2,4.59803219]
[1739672804184,0.004,2698.3,2698.2,4.68896145]